bitfinex/quotes_ETHUSD_20241116
["timestamp","ask_amount","ask_price","bid_price","bid_amount"]
[1731716668087,3.25003,3076.9,3076.3,0.79]
[1731716668419,3.25025,3076.7,3076.1,3.54509423]
[1731716668714,0.03764524,3076.6,3076.1,3.25086]
[1731716668872,0.03764524,3076.6,3076.0,3.79]
[1731716669232,3.25066,3076.3,3076.0,0.79]
[1731716669371,3.25084,3076.2,3075.6,0.79]
[1731716669709,6.86437982,3076.2,3075.6,4.04139]
[1731716669909,6.53929582,3076.2,3075.6,4.04139]
[1731716670097,3.25087,3076.1,3075.6,0.79]
[1731716670299,3.28828043,3076.0,3075.6,0.79]
[1731716670502,3.28828043,3076.0,3075.3,4.0889]
[1731716670674,3.28832043,3076.0,3075.3,0.83721]
[1731716670878,0.03595679,3075.9,3075.3,4.08884]
[1731716671183,0.03595679,3075.9,3075.3,5.18391338]
[1731716671400,3.28703679,3075.9,3075.3,5.18391338]
[1731716671709,0.03595679,3075.9,3075.3,5.18391338]
[1731716671963,0.03595679,3075.9,3075.4,3.25156]
[1731716672129,0.03595679,3075.9,3075.4,1.19805676]
[1731716672523,3.25053,3076.5,3075.7,3.25121]
[1731716672524,3.25062,3076.4,3075.7,3.25121]
[1731716672719,0.03559585,3075.8,3075.7,6.5024]
[1731716672943,3.25062,3076.4,3075.7,3.2512]
[1731716673147,0.03572483,3075.8,3075.7,3.2512]
[1731716673346,3.25067,3076.3,3075.7,3.2512]
[1731716673553,0.03572483,3075.8,3075.7,3.2512]
[1731716673721,3.25078,3076.2,3075.7,3.2512]
[1731716673938,3.25078,3076.2,3075.6,3.54509423]
[1731716673939,0.03595373,3076.1,3075.3,10.63397423]
[1731716674134,0.03595373,3076.1,3075.3,0.83721]
[1731716674135,3.25131,3075.7,3075.3,0.83721]
[1731716674459,0.0336,3075.9,3075.3,0.83721]
[1731716674460,3.28476,3075.9,3075.3,0.83721]
[1731716674664,0.03547083,3075.6,3075.3,4.08891]
[1731716674822,3.28476,3075.9,3075.3,0.83721]
[1731716674823,3.2512,3075.8,3075.3,0.83721]
[1731716675223,0.03557061,3075.7,3075.3,0.83721]
[1731716675435,3.2512,3075.8,3075.3,4.497812]
[1731716675637,3.2512,3075.8,3075.3,0.456112]
[1731716675842,0.03557061,3075.7,3075.3,0.456112]
[1731716676040,3.2512,3075.8,3075.3,0.456112]
[1731716676539,0.03557061,3075.7,3075.3,0.456112]
[1731716676962,3.2512,3075.8,3075.3,0.456112]
[1731716677159,0.03549429,3075.6,3075.3,0.456112]
[1731716677360,3.25149,3075.6,3075.3,0.04721]
[1731716677565,3.2516,3075.4,3075.3,0.04721]
[1731716678034,3.32090548,3075.4,3075.3,0.04721]
[1731716679384,6.88090548,3075.4,3075.3,0.04721]
[1731716679583,7.89514503,3075.4,3075.3,0.04721]
[1731716682878,0.0336,3074.2,3073.7,3.25333]
[1731716683100,0.0336,3074.2,3073.1,3.25913236]
[1731716683101,3.25289,3074.2,3073.5,4.04361]
[1731716683263,0.03469026,3074.1,3073.5,4.04361]
[1731716683591,3.25289,3074.2,3073.5,0.79]
[1731716684187,0.03476664,3074.2,3073.7,3.25338]
[1731716684980,3.28764664,3074.2,3073.7,3.25338]
[1731716685171,3.25288,3074.2,3073.7,3.25338]
[1731716685492,0.03469026,3074.1,3073.7,3.25338]
[1731716685797,3.25276,3074.4,3073.7,3.25338]
[1731716685961,0.03461387,3074.0,3073.7,3.25338]
[1731716686165,3.25287,3074.2,3073.6,3.54509423]
[1731716686365,0.03453748,3073.9,3073.6,3.54509423]
[1731716686590,3.25299,3074.1,3073.6,3.54509423]
[1731716687087,0.0346089,3074.0,3073.6,3.54509423]
[1731716687256,0.0346089,3074.0,3073.6,6.79859423]
[1731716687459,3.25292,3074.2,3073.6,7.88932095]
[1731716688004,0.03430967,3074.1,3073.6,7.88932095]
[1731716688198,0.03430967,3074.1,3073.7,3.25339]
[1731716688367,3.28728967,3074.1,3073.6,7.88931095]
[1731716688569,3.25289,3074.2,3073.6,7.88931095]
[1731716688804,0.06811381,3074.0,3073.6,1.09072672]
[1731716688956,0.0336,3074.0,3073.4,3.31869789]
[1731716689301,0.03453601,3073.9,3073.5,0.63186979]
[1731716689471,3.25309,3074.0,3073.4,3.31869789]
[1731716689669,0.03453601,3073.9,3073.5,0.8122]
[1731716689988,3.25298,3074.1,3073.5,0.8122]
[1731716690181,0.03446109,3073.8,3073.5,4.06575]
[1731716690360,3.25298,3074.1,3073.5,0.8122]
[1731716690594,3.25298,3074.1,3073.5,4.06581]
[1731716690930,0.03434951,3074.0,3073.5,4.06581]
[1731716692584,0.03434951,3074.0,3073.6,3.25343]
[1731716693029,3.25288,3074.2,3073.6,3.25343]
[1731716693233,0.03329326,3073.9,3073.6,3.25343]
[1731716693400,3.28638,3074.3,3073.5,4.35729423]
[1731716693401,3.25306,3074.1,3073.5,0.8122]
[1731716693587,0.03321686,3073.8,3073.5,0.8122]
[1731716693789,3.25306,3074.1,3073.5,0.8122]
[1731716694115,3.25306,3074.1,3073.6,3.25351]
[1731716694435,0.03336965,3074.0,3073.6,6.57201776]
[1731716694732,3.25245,3074.6,3073.6,0.82614818]
[1731716694889,0.03329326,3073.9,3073.6,0.06506776]
[1731716695085,0.03329326,3073.9,3073.5,0.8122]
[1731716695322,0.03329326,3073.9,3073.5,1.218794]
[1731716695731,3.28648326,3073.9,3073.5,1.218794]
[1731716696228,0.03329326,3073.9,3073.5,4.472394]
[1731716696439,0.03329326,3073.9,3073.5,4.76388823]
[1731716696586,3.25306,3074.1,3073.5,4.76388823]
[1731716696786,0.03321686,3073.8,3073.5,4.76388823]
[1731716697043,0.0336,3074.5,3073.5,4.76388823]
[1731716697044,3.25285,3074.3,3073.5,4.76388823]
[1731716697194,0.03314046,3073.7,3073.6,0.8082676]
[1731716697532,0.03314046,3073.7,3073.5,4.0658]
[1731716697829,3.2529,3074.2,3073.5,4.0658]
[1731716698031,0.03306406,3073.6,3073.5,4.77238]
[1731716698326,0.03302819,3073.6,3073.5,0.8122]
[1731716698529,3.25316,3074.0,3073.5,0.8122]
[1731716698694,0.03325739,3073.9,3073.5,0.8122]
[1731716699506,3.28646739,3073.9,3073.5,0.8122]
[1731716699709,0.03325739,3073.9,3073.5,8.349292]
[1731716699936,3.25309,3074.0,3073.5,8.349292]
[1731716700229,0.03309624,3073.8,3073.5,0.8122]
[1731716700431,0.03309624,3073.8,3072.8,3.0]
[1731716700432,3.25351,3073.6,3073.2,0.8122]
[1731716700746,0.03295178,3073.5,3073.2,4.06613]
[1731716701234,3.25333,3073.8,3073.2,4.06613]
[1731716701396,3.25321,3073.9,3073.3,3.25372]
[1731716701598,0.03310459,3073.7,3073.3,3.25372]
[1731716701834,0.03318099,3073.8,3073.3,3.25372]
[1731716702022,0.03294114,3073.6,3073.3,3.25382]
[1731716702221,0.03301755,3073.7,3073.3,3.25381]
[1731716702542,3.2529,3074.2,3073.5,3.25353]
[1731716702726,3.2529,3074.2,3073.6,3.54509423]
[1731716703035,3.2529,3074.2,3073.2,0.8122]
[1731716703036,3.906792,3074.2,3073.2,0.8122]
[1731716703256,3.25351,3073.7,3073.2,0.8122]
[1731716703625,3.25351,3073.7,3073.2,4.06611]
[1731716703813,3.25325,3073.9,3073.2,7.56115423]
[1731716704146,3.25325,3073.9,3073.3,3.25378]
[1731716704676,3.25269,3074.4,3073.3,3.25378]
[1731716704677,3.25288,3074.2,3073.6,3.25345]
[1731716704953,3.26231,3074.8,3073.6,3.25351]
[1731716704954,3.25233,3074.8,3073.6,3.25351]
[1731716705170,3.33568,3075.0,3074.3,3.25275]
[1731716705451,3.25216,3074.9,3074.3,3.25275]
[1731716705964,3.25196,3075.1,3074.5,3.25252]
[1731716706130,0.65856949,3075.6,3074.3,3.25275]
[1731716706328,3.25305,3074.1,3073.5,3.0]
[1731716706542,3.2529,3074.2,3073.5,3.25355]
[1731716706724,3.25302,3074.1,3073.5,0.829]
[1731716707243,3.2532,3073.9,3073.5,0.829]
[1731716707448,3.25345,3073.7,3073.2,4.08291]
[1731716707942,3.2532,3073.9,3073.3,3.2538]
[1731716708147,3.2532,3073.9,3073.2,0.8940712]
[1731716708368,3.25347,3073.7,3073.2,3.3189812]
[1731716708521,3.25347,3073.7,3073.1,3.25402]
[1731716709433,3.25347,3073.7,3073.2,3.25392]
[1731716709656,3.25347,3073.7,3073.1,3.25402]
[1731716709861,3.25347,3073.7,3073.1,3.25403]
[1731716710158,3.25347,3073.7,3073.0,3.28048045]
[1731716710355,3.25347,3073.7,3073.2,3.25393]
[1731716710563,0.0836,3074.4,3073.5,3.2536]
[1731716710719,0.0836,3074.4,3073.9,3.25311]
[1731716710915,3.25236,3074.7,3074.0,3.25299]
[1731716711167,3.25248,3074.6,3074.0,3.25299]
[1731716711326,3.25267,3074.4,3073.9,0.89405613]
[1731716711526,3.25267,3074.4,3073.9,0.829]
[1731716711961,0.03246737,3074.3,3073.9,0.829]
[1731716712129,3.25273,3074.4,3073.9,0.829]
[1731716712331,0.03228381,3074.3,3073.9,0.829]
[1731716712937,3.25256,3074.5,3073.9,4.08212]
[1731716713134,0.03254374,3074.4,3073.9,4.08212]
[1731716713730,0.03254374,3074.4,3074.1,3.25298]
[1731716714059,3.25217,3074.9,3074.3,3.25276]
[1731716714562,3.25217,3074.9,3073.9,4.37409423]
[1731716714563,3.25245,3074.7,3073.9,7.62719423]
[1731716714766,3.25245,3074.7,3074.0,3.25301]
[1731716714986,6.50489,3074.7,3074.0,3.31806451]
[1731716715268,3.586615,3075.0,3074.3,3.2527]
[1731716715461,3.25206,3075.0,3074.4,0.829]
[1731716715672,3.55509423,3076.0,3074.4,0.829]
[1731716715673,0.0836,3075.7,3074.4,0.829]
[1731716715960,3.25179,3075.3,3074.6,3.25239]
[1731716716170,3.25179,3075.3,3074.7,3.25234]
[1731716716526,3.25179,3075.3,3074.7,0.829]
[1731716716747,3.25153,3075.5,3074.8,3.25216]
[1731716716947,3.25161,3075.4,3074.8,3.25216]
[1731716717152,3.25153,3075.5,3074.8,3.25216]
[1731716717153,3.25153,3075.5,3074.9,3.25206]
[1731716717767,3.2511,3075.9,3075.2,3.25175]
[1731716717965,3.25118,3075.8,3075.3,0.829]
[1731716718130,3.25088,3076.1,3075.4,3.25158]
[1731716718327,0.325088,3076.0,3075.4,3.25158]
[1731716718836,0.325088,3076.0,3075.3,0.829]
[1731716718837,3.25125,3075.8,3075.3,0.829]
[1731716719041,0.0836,3076.3,3074.5,3.54509423]
[1731716719042,3.25206,3075.0,3074.5,3.54509423]
[1731716719227,3.25193,3075.1,3074.6,0.829]
[1731716719955,3.25179,3075.3,3074.6,4.08145]
[1731716721383,0.417068,3075.7,3074.6,4.08145]
[1731716721592,3.25164,3075.4,3074.8,3.25221]
[1731716721914,0.325164,3075.3,3074.8,3.25221]
[1731716722089,3.576894,3075.3,3074.7,0.06503805]
[1731716722844,3.25143,3075.6,3074.8,3.25224]
[1731716723042,3.25171,3075.3,3074.7,6.79743423]
[1731716723287,3.576881,3075.3,3074.7,6.79743423]
[1731716723649,3.25171,3075.3,3074.7,6.79743423]
[1731716723878,3.25171,3075.3,3074.8,0.06503805]
[1731716724257,3.25148,3075.6,3074.8,0.06503805]
[1731716724452,3.25148,3075.6,3074.8,3.31726805]
[1731716724453,3.25161,3075.4,3074.8,3.31726805]
[1731716725552,3.25148,3075.6,3075.0,3.25199]
[1731716725769,3.25148,3075.6,3075.1,0.8325]
[1731716726047,3.910109,3075.6,3075.1,0.8325]
[1731716726444,3.25158,3075.5,3075.1,0.8325]
[1731716726742,6.25093,3076.1,3075.2,3.31676257]
[1731716726743,3.33451,3076.1,3075.2,3.31676257]
[1731716726943,3.25115,3075.9,3075.3,4.02110568]
[1731716727185,0.03211183,3075.8,3075.4,0.8325]
[1731716727353,3.2513,3075.7,3075.4,0.8325]
[1731716727706,0.0836,3076.3,3075.4,0.8325]
[1731716727707,0.03239315,3075.6,3075.4,0.8325]
[1731716727986,3.25083,3076.2,3075.5,3.2515]
[1731716728414,3.25083,3076.2,3075.6,3.25138]
[1731716728935,3.25048,3076.5,3075.5,3.31652215]
[1731716728936,3.25048,3076.5,3075.7,4.08374]
[1731716729076,0.0836,3076.6,3075.7,0.8325]
[1731716729280,3.25107,3076.0,3075.7,0.8325]
[1731716729675,0.0836,3076.6,3075.7,0.8325]
[1731716729676,3.25059,3076.4,3075.7,0.8325]
[1731716729875,3.25059,3076.4,3075.7,4.08378]
[1731716730076,3.25059,3076.4,3075.8,3.25114]
[1731716730313,3.575749,3076.3,3075.7,4.08378]
[1731716732074,0.325059,3076.3,3075.7,4.08371]
[1731716732942,3.25096,3076.1,3075.7,0.8325]
[1731716733086,3.25111,3075.9,3075.7,0.8325]
[1731716733432,3.25095,3076.1,3075.7,0.8325]
[1731716734075,3.25067,3076.3,3075.7,0.8325]
[1731716734306,0.325067,3076.2,3075.8,3.25118]
[1731716734517,3.25057,3076.4,3075.8,3.25118]
[1731716734705,3.25057,3076.4,3075.7,4.08375]
[1731716735100,3.25048,3076.5,3075.7,4.08375]
[1731716735405,0.333408,3076.4,3075.9,3.25105]
[1731716735806,0.333408,3076.4,3075.7,4.08372]
[1731716736111,3.25067,3076.3,3075.7,4.08372]
[1731716736314,0.3584078,3076.2,3075.7,4.08372]
[1731716736483,0.3584078,3076.2,3075.8,3.25118]
[1731716737196,0.333408,3076.4,3075.8,3.25118]
[1731716737527,3.584028,3076.4,3075.8,3.25118]
[1731716739087,3.25213,3074.9,3074.8,0.65967854]
[1731716739459,3.25271,3074.4,3073.9,0.8325]
[1731716739625,0.0836,3074.8,3073.5,3.25359]
[1731716739626,3.25234,3074.7,3073.5,3.25359]
[1731716739829,3.25234,3074.7,3073.4,0.8325]
[1731716739830,3.25256,3074.5,3073.4,0.8325]
[1731716740000,3.25327,3073.9,3073.4,0.8325]
[1731716740387,3.25327,3073.9,3073.2,3.25387]
[1731716740798,3.33669,3074.0,3073.3,3.25382]
[1731716741095,3.25268,3074.4,3073.7,3.25333]
[1731716741501,3.25277,3074.3,3073.7,3.25333]
[1731716741700,3.25277,3074.3,3073.5,6.25353]
[1731716741946,0.03130928,3074.2,3073.5,7.5943946]
[1731716742240,0.03130928,3074.2,3073.6,6.25344]
[1731716742442,0.03130928,3074.2,3073.6,3.0]
[1731716742443,3.28419928,3074.2,3073.6,3.0]
[1731716742798,3.28419928,3074.2,3073.5,3.31867426]
[1731716743042,3.25299,3074.1,3073.5,3.31867426]
[1731716743283,3.28419928,3074.2,3073.5,3.31867426]
[1731716743284,3.28419928,3074.2,3073.6,3.2535]
[1731716743560,0.03118539,3074.1,3073.6,3.2535]
[1731716745430,0.03118539,3074.1,3073.7,3.25339]
[1731716745634,0.03118539,3074.1,3073.8,0.7564]
[1731716745831,3.2527,3074.4,3073.8,0.7564]
[1731716746043,0.03007384,3074.0,3073.8,0.7564]
[1731716746248,3.2527,3074.4,3073.8,0.7564]
[1731716746451,0.02978794,3073.9,3073.8,0.7564]
[1731716746646,3.2527,3074.4,3073.8,0.7564]
[1731716747016,3.25279,3074.3,3073.8,1.39769037]
[1731716747164,3.25289,3074.2,3073.8,0.64129037]
[1731716747325,0.03001116,3074.1,3073.8,0.64129037]
[1731716748530,3.25343,3073.7,3073.1,3.25403]
[1731716748727,3.578923,3073.6,3072.9,4.01058]
[1731716749045,0.35478764,3073.6,3073.2,3.25392]
[1731716749248,0.02944464,3073.6,3073.2,3.25392]
[1731716749554,3.25332,3073.8,3073.2,3.25392]
[1731716749743,0.03165496,3073.7,3073.2,3.25392]
[1731716750070,0.03165496,3073.7,3073.3,3.31887339]
[1731716750226,0.03165496,3073.7,3073.4,3.25364]
[1731716750564,3.25322,3073.9,3073.2,3.25386]
[1731716750768,3.33651,3074.2,3073.4,3.2537]
[1731716750769,3.2531,3074.0,3073.4,3.2537]
[1731716750970,0.02969744,3073.9,3073.4,3.2537]
[1731716751536,0.02969744,3073.9,3073.5,3.2536]
[1731716751738,3.25267,3074.4,3073.8,3.2533]
[1731716751944,0.02999724,3074.3,3073.8,3.2533]
[1731716753436,3.28277724,3074.3,3073.8,3.2533]
[1731716753975,3.28277724,3074.3,3073.7,0.06506334]
[1731716754182,3.28277724,3074.3,3073.7,3.31846334]
[1731716754343,3.28277724,3074.3,3073.7,0.06506334]
[1731716754542,3.28277724,3074.3,3073.6,4.00989]
[1731716754980,3.28277724,3074.3,3073.7,3.25339]
[1731716755251,0.02999724,3074.3,3073.8,3.25323]
[1731716755839,0.02999724,3074.3,3073.8,0.73281813]
[1731716756072,0.02999724,3074.3,3073.9,0.06505415]
[1731716756288,3.25307,3074.1,3073.4,0.36534646]
[1731716756449,3.25307,3074.1,3073.5,3.0]
[1731716756450,3.25316,3074.0,3073.5,3.0]
[1731716756782,0.0289181,3074.0,3073.5,3.0]
[1731716756994,3.25296,3074.2,3073.6,3.25349]
[1731716757163,3.25316,3074.0,3073.5,3.0]
[1731716757474,0.03080862,3073.9,3073.5,3.0]
[1731716758177,3.28400862,3073.9,3073.4,3.0]
[1731716758390,0.03080862,3073.9,3073.4,6.25365]
[1731716758792,3.28400862,3073.9,3073.4,3.0]
[1731716759515,3.62076948,3073.9,3073.4,3.25372]
[1731716759672,0.36756948,3073.9,3073.4,3.25372]
[1731716759878,0.03080862,3073.9,3073.4,3.25372]
[1731716760260,0.03080862,3073.9,3073.3,4.01021]
[1731716760461,0.03080862,3073.9,3073.3,4.01016]
[1731716761057,3.28400862,3073.9,3073.3,4.01016]
[1731716764076,0.03080862,3073.9,3073.4,0.06506707]
[1731716764267,0.03080862,3073.9,3073.4,0.47258878]
[1731716764469,0.03080862,3073.9,3073.4,3.72629878]
[1731716765298,0.03080862,3073.9,3072.8,3.0]
[1731716765299,3.25393,3073.3,3072.8,3.0]
[1731716765667,3.33728,3073.5,3073.0,3.28056045]
[1731716766156,0.03042216,3073.4,3073.0,3.28056045]
[1731716766942,0.03042216,3073.4,3073.1,3.254]
[1731716767144,0.03042216,3073.4,3073.2,3.25384]
[1731716767297,0.03042216,3073.4,3073.3,0.06507024]
[1731716767502,3.25342,3073.7,3073.0,3.9339715]
[1731716767704,0.02854883,3073.4,3073.1,3.64741115]
[1731716767900,3.25353,3073.6,3073.1,3.64741115]
[1731716768120,3.33692,3073.8,3073.1,3.64741115]
[1731716768121,0.03050616,3073.3,3073.1,3.64741115]
[1731716768446,0.0836,3074.1,3073.2,3.75813827]
[1731716768608,0.0836,3074.1,3073.2,7.78234827]
[1731716768609,3.25332,3073.8,3073.2,7.78234827]
[1731716768934,3.25332,3073.8,3073.3,1.17208436]
[1731716769344,3.25348,3073.7,3073.3,1.17208436]
[1731716769649,3.25343,3073.7,3073.2,4.84733841]
[1731716769803,3.25324,3073.9,3073.2,1.52843827]
[1731716770152,3.25324,3073.9,3073.3,3.31886877]
[1731716770303,3.25324,3073.9,3073.4,0.52895903]
[1731716771044,3.25335,3073.8,3073.4,0.52895903]
[1731716771211,3.25335,3073.8,3073.3,0.06506877]
[1731716771737,3.33663,3074.1,3073.3,0.06506877]
[1731716772059,0.033518,3074.0,3073.3,3.31883877]
[1731716772237,3.25326,3073.9,3073.2,4.02414]
[1731716772449,0.033518,3074.0,3073.3,0.06506877]
[1731716772609,3.28435016,3073.8,3073.3,0.06506877]
[1731716772935,3.28435016,3073.8,3073.2,0.7703]
[1731716772936,3.25363,3073.5,3073.2,0.7703]
[1731716773145,3.25347,3073.7,3073.2,0.7703]
[1731716773347,0.03298906,3073.4,3073.2,0.7703]
[1731716773548,3.25334,3073.8,3073.2,0.7703]
[1731716773707,3.25334,3073.8,3073.0,3.28049045]
[1731716773708,0.03290088,3073.3,3073.0,0.02642045]
[1731716773910,0.0836,3073.5,3073.0,0.02642045]
[1731716774106,0.03046893,3073.2,3073.0,3.28054045]
[1731716774346,0.0836,3073.5,3073.0,3.28054045]
[1731716774547,0.03281103,3073.2,3073.0,4.3110555]
[1731716774847,0.03281103,3073.2,3073.0,7.5651255]
[1731716775023,0.0836,3073.5,3073.0,4.3110055]
[1731716775224,0.03281103,3073.2,3073.0,7.5650855]
[1731716775452,0.0836,3073.5,3073.1,3.25404]
[1731716775651,0.03046738,3073.2,3073.1,3.25404]
[1731716775813,0.0836,3073.5,3073.1,3.25404]
[1731716776013,0.03046738,3073.2,3073.1,3.25404]
[1731716776209,0.0836,3073.5,3073.1,3.25404]
[1731716776528,0.03063115,3073.4,3073.1,3.25404]
[1731716776850,0.03063115,3073.4,3073.3,3.25383]
[1731716777011,0.03063115,3073.4,3073.3,4.57413]
[1731716777208,0.0836,3074.1,3073.5,3.25353]
[1731716777547,0.03103507,3074.0,3073.5,3.25353]
[1731716777858,0.03103507,3074.0,3073.6,3.25344]
[1731716778058,0.03103507,3074.0,3073.5,3.25353]
[1731716778215,0.03103507,3074.0,3073.6,3.25347]
[1731716778419,0.03103507,3074.0,3073.7,3.25334]
[1731716778621,0.03103507,3074.0,3073.9,0.7703]
[1731716778927,3.25264,3074.5,3073.9,4.02349]
[1731716779140,0.0307663,3074.0,3073.9,4.02349]
[1731716779352,3.25264,3074.5,3073.9,4.02349]
[1731716779526,3.33616,3074.6,3073.9,4.02349]
[1731716779527,0.03313294,3074.0,3073.9,4.02349]
[1731716779724,3.25267,3074.4,3073.9,4.02349]
[1731716780228,0.03342715,3074.3,3074.0,3.25306]
[1731716780621,3.33614,3074.6,3074.0,3.25306]
[1731716780826,3.2861734,3074.5,3074.0,3.25306]
[1731716781230,0.0336034,3074.5,3073.9,0.7703]
[1731716781526,0.0336034,3074.5,3074.0,3.25302]
[1731716781728,3.2861634,3074.5,3073.9,4.02343]
[1731716782040,0.0336034,3074.5,3074.0,3.25301]
[1731716782792,0.0336034,3074.5,3074.1,3.25294]
[1731716782931,0.0336034,3074.5,3074.2,3.25287]
[1731716783132,0.0336034,3074.5,3074.1,0.402331]
[1731716783368,3.25262,3074.5,3073.9,4.02348]
[1731716783673,0.02924124,3074.4,3074.0,3.25301]
[1731716784027,3.25241,3074.7,3074.1,3.25297]
[1731716784453,0.0314659,3074.6,3074.1,3.25297]
[1731716784958,0.0314659,3074.6,3074.2,3.25287]
[1731716785372,0.0314659,3074.6,3074.4,3.25264]
[1731716785750,3.25195,3075.1,3074.4,7.29653]
[1731716785933,3.25195,3075.1,3074.4,4.04389]
[1731716786255,0.02983981,3075.0,3074.4,4.04389]
[1731716786462,3.28196981,3075.0,3074.4,4.04389]
[1731716787280,0.02983981,3075.0,3074.5,0.55]
[1731716787434,0.02983981,3075.0,3074.9,7.04343]
[1731716787635,3.25127,3075.8,3074.9,7.10846024]
[1731716787636,3.2514,3075.6,3074.9,7.10846024]
[1731716787900,3.2514,3075.6,3075.1,3.25191]
[1731716788170,0.0300725,3075.5,3075.2,3.25173]
[1731716788382,0.0300725,3075.5,3075.1,3.31693997]
[1731716788383,0.0300725,3075.5,3075.3,3.31670849]
[1731716788581,3.25118,3075.8,3075.3,3.31670849]
[1731716788747,3.58464,3075.8,3075.3,3.31670849]
[1731716788949,0.0303287,3075.7,3075.3,3.31670849]
[1731716789137,3.33439,3076.2,3075.5,4.04272]
[1731716789341,0.0836,3076.2,3075.6,3.25136]
[1731716789535,0.03063388,3076.1,3075.6,3.25136]
[1731716789842,0.03063388,3076.1,3075.8,3.25117]
[1731716790239,3.25059,3076.4,3075.8,3.25117]
[1731716790583,0.03029979,3076.0,3075.8,3.25117]
[1731716790736,3.25059,3076.4,3075.8,3.25117]
[1731716790932,0.333419,3076.3,3075.8,3.25117]
[1731716791161,3.25038,3076.6,3075.9,0.06501456]
[1731716791366,0.03045238,3076.2,3075.8,3.25117]
[1731716791572,3.25038,3076.6,3075.8,3.25117]
[1731716791782,0.03037609,3076.1,3075.8,3.25117]
[1731716791994,0.325038,3076.5,3075.9,0.06501462]
[1731716792279,0.325038,3076.5,3075.9,3.25108]
[1731716792487,0.03047606,3076.4,3076.1,3.25086]
[1731716792783,0.03047606,3076.4,3076.1,3.31587077]
[1731716793152,0.03047606,3076.4,3075.9,3.25097]
[1731716793764,3.25041,3076.6,3075.9,3.25097]
[1731716793966,0.03303405,3076.3,3075.9,3.25097]
[1731716794285,0.325041,3076.5,3075.7,3.0]
[1731716794286,0.03295233,3076.2,3075.7,3.0]
[1731716794466,0.03295233,3076.2,3075.7,6.80122]
[1731716794639,0.32835123,3076.2,3075.7,3.0]
[1731716794984,0.03067922,3076.1,3075.7,3.0]
[1731716795354,0.03067922,3076.1,3075.8,3.31609461]
[1731716795756,0.03067922,3076.1,3075.8,3.25108]
[1731716795963,3.25036,3076.6,3075.8,3.25108]
[1731716796277,3.575486,3076.5,3075.9,3.25108]
[1731716796483,3.575496,3076.5,3075.9,0.7913]
[1731716796650,0.03098273,3076.4,3075.9,0.7913]
[1731716797098,3.2508,3076.2,3075.6,0.79646822]
[1731716797249,0.03098273,3076.4,3075.6,0.00516822]
[1731716797250,3.25127,3075.8,3075.6,0.00516822]
[1731716797741,0.03262364,3075.7,3075.6,0.00516822]
[1731716797968,0.11622364,3075.7,3075.6,0.00516822]
[1731716798167,3.33489,3075.7,3075.6,0.00516822]
[1731716798374,4.02611925,3075.7,3075.6,0.00516822]
[1731716798579,7.02611925,3075.7,3075.6,0.00516822]
[1731716801054,7.03501293,3075.7,3075.6,0.00516822]
[1731716806082,4.03501293,3075.7,3075.6,0.00516822]
[1731716806468,3.95141293,3075.7,3075.6,0.00516822]
[1731716807205,0.04150693,3075.7,3075.6,0.00516822]
[1731716807587,0.03258168,3075.7,3075.6,0.00516822]
[1731716807788,3.251,3076.0,3075.6,0.00516822]
[1731716807975,3.25082,3076.2,3075.6,0.00516822]
[1731716808176,0.03274517,3075.9,3075.6,3.25653822]
[1731716808486,0.03267205,3075.8,3075.6,3.25653822]
[1731716808982,3.25082,3076.2,3075.6,3.25653822]
[1731716809618,0.03291727,3076.1,3075.6,3.90218182]
[1731716809817,3.33402,3076.6,3075.8,6.50221]
[1731716809976,3.28369056,3076.5,3075.9,0.06501441]
[1731716810315,3.25062,3076.4,3075.9,0.06501441]
[1731716810672,0.03308713,3076.3,3075.8,3.25108]
[1731716810905,0.03308713,3076.3,3075.9,3.25106]
[1731716811105,3.2504,3076.6,3075.8,3.65433]
[1731716811106,3.2504,3076.6,3076.0,3.2509]
[1731716811326,0.03080773,3076.2,3076.0,3.2509]
[1731716811629,0.03073145,3076.1,3076.0,3.2509]
[1731716811798,3.2504,3076.6,3076.0,3.2509]
[1731716812130,0.03103654,3076.5,3076.3,0.7814]
[1731716812326,0.03103654,3076.5,3076.3,0.84640624]
[1731716812498,3.25016,3076.8,3076.3,0.84640624]
[1731716812698,0.03214549,3076.4,3076.3,0.84640624]
[1731716812997,3.25016,3076.8,3076.3,0.84640624]
[1731716813211,0.03214841,3076.4,3076.3,0.84640624]
[1731716813410,0.03462136,3076.4,3076.3,0.84640624]
[1731716813583,3.25016,3076.8,3076.3,0.84640624]
[1731716813990,0.0348909,3076.7,3076.3,0.84640624]
[1731716814296,0.0348909,3076.7,3076.3,0.7814]
[1731716814494,3.2851809,3076.7,3076.3,0.7814]
[1731716814908,0.0348909,3076.7,3076.3,0.7814]
[1731716815222,0.0836,3076.6,3075.7,3.7814]
[1731716815426,0.03223528,3076.5,3075.3,0.7814]
[1731716815718,3.25137,3075.7,3075.3,0.7814]
[1731716816135,3.25112,3075.9,3075.3,0.7814]
[1731716816317,0.03392272,3075.6,3075.3,0.7814]
[1731716816505,3.25112,3075.9,3075.3,0.7814]
[1731716816702,0.03665423,3075.5,3075.3,0.7814]
[1731716816902,3.2513,3075.7,3075.3,0.7814]
[1731716817101,0.03655883,3075.4,3075.3,0.7814]
[1731716817342,3.25112,3075.9,3075.3,4.03311]
[1731716817548,0.03655883,3075.4,3075.3,0.7814]
[1731716817838,3.25131,3075.7,3075.3,0.7814]
[1731716818315,0.03674961,3075.6,3075.3,0.7814]
[1731716818850,3.28817961,3075.6,3075.3,0.7814]
[1731716819151,3.28817961,3075.6,3074.9,0.7814]
[1731716819152,3.2516,3075.4,3074.9,0.7814]
[1731716819316,3.2517,3075.4,3074.9,0.7814]
[1731716819641,0.03643307,3075.3,3075.0,0.06503306]
[1731716819811,3.25171,3075.4,3074.9,0.7814]
[1731716820349,0.04371968,3075.3,3074.9,3.7814]
[1731716820516,3.33494,3075.7,3075.0,3.31699307]
[1731716820726,0.04360519,3075.2,3075.0,0.06503307]
[1731716820911,3.25151,3075.5,3075.0,0.06503307]
[1731716821104,0.03624225,3075.1,3074.9,7.436877]